Cogmind - Beta 12 @@@ ROGUE MODE // 2023.10.30 @ 15:07:43 Player: Skitcher Result: Destroyed by G-47 Trooper with Particle Gun Performance ------------- Evolutions (0) 0 Regions Visited (4) 800 Robots Destroyed (30) 150 Value Destroyed (689) 689 Prototype IDs (2) 40 Alien Tech Used (0) 0 Bonus (300) 300 TOTAL SCORE: 1979 Bonus ------- Aligned with FarCom 300 Cogmind --------- Core Integrity 0/250 Matter 300/300 Energy 100/100 System Corruption 0% Temperature Cool (9) Movement Walking (400) Ox4 Location -9/Mines Parts ------- > --- POWER (1) -------- (None) > --- PROPULSION (2) --- Aluminum Leg > --- UTILITY (2) ------ High-capacity Storage Unit Targeting Computer > --- WEAPON (2) ------- Particle Gun Assault Rifle > --- INVENTORY (20) --- Reinforced Deuterium Engine Reinforced Deuterium Engine Light Fission Core Large Battery (200) Seismic Detector Heavy Assault Rifle Light Cannon Grenade Launcher Peak State ------------ > --- POWER ------------ Ion Engine > --- PROPULSION ------- Light Treads Light Treads > --- UTILITY ---------- High-capacity Storage Unit Targeting Computer > --- WEAPON ----------- Particle Gun Light Cannon > --- INVENTORY -------- Light Ion Engine Reinforced Deuterium Engine Reinforced Deuterium Engine Light Fission Core Large Battery Seismic Detector Assault Rifle Heavy Assault Rifle Grenade Launcher [Rating: 10] Favorites ----------- Power Ion Engine Engine Ion Engine Propulsion Light Treads Treads Light Treads Leg Aluminum Leg Utility Targeting Computer Device Seismic Detector Storage Small Storage Unit Processor Targeting Computer Weapon Light Cannon Energy Gun Particle Gun Ballistic Gun Assault Rifle Ballistic Cannon Light Cannon Build | -11 -10 -10 -10 -9 ------- Run | Jun Mat Min Exi Min Slots Evolved . | . . . . . Power . | . . . . . Propulsion . | . . . . . Utility . | . . . . . Weapon . | . . . . . Parts Attached 35 | 6 18 2 3 6 Power 7 | 1 4 . 1 1 Engine 7 | 1 4 . 1 1 Core . | . . . . . Reactor . | . . . . . Propulsion 7 | 2 2 1 . 2 Treads 5 | 2 2 1 . . Leg 2 | . . . . 2 Wheel . | . . . . . Hover . | . . . . . Flight . | . . . . . Utility 10 | 1 7 1 1 . Device 2 | . 2 . . . Storage 6 | 1 4 . 1 . Processor 2 | . 1 1 . . Hackware . | . . . . . Protection . | . . . . . Artifact . | . . . . . Weapon 11 | 2 5 . 1 3 Energy Gun 5 | . 3 . 1 1 Energy Cannon . | . . . . . Ballistic Gun 5 | 2 1 . . 2 Ballistic Cannon 1 | . 1 . . . Launcher . | . . . . . Special Weapon . | . . . . . Impact Weapon . | . . . . . Slashing Weapon . | . . . . . Piercing Weapon . | . . . . . Special Melee Weapon . | . . . . . Unidentified Prototypes . | . . . . . Parts Lost 5 | . 1 . . 4 Power 2 | . . . . 2 Propulsion 2 | . . . . 2 Utility . | . . . . . Weapon 1 | . 1 . . . Highest Loss Streak 2 | . 1 . . 2 To Critical Strikes . | . . . . . Average Slot Usage (%) 97 | . 98 100 100 91 Engine 13 | . 14 14 14 13 Treads 26 | . 27 28 28 20 Device 4 | . 11 1 . . Storage 14 | . 15 14 14 14 Processor 8 | . . 12 14 14 Energy Gun 6 | . 3 . 11 4 Ballistic Gun 10 | . 16 14 2 10 Ballistic Cannon 11 | . 7 14 14 13 Naked Turns . | . . . . . Heaviest Build 51 | 12 17 16 51 51 Greatest Support 40 | 40 40 40 40 40 Greatest Overweight (x) 4 | . 4 . 1 4 Average Overweight (x) . | . . . . 1 Largest Inventory Capacity 25 | 8 25 8 20 20 Average Capacity 13 | 6 7 8 17 20 Most Carried 10 | 4 8 8 8 10 Average Carried 7 | 2 6 7 7 9 Final Capacity 20 | 8 8 8 20 20 Final Carried 8 | 2 8 8 8 8 Class Distribution -------------------- 100% | Mutant Dominant Class ---------------- Mutant | -10/Materials Mutant | -10/Mines Mutant | -10/Exiles Mutant | -9/Mines Resources | -11 -10 -10 -10 -9 ----------- Run | Jun Mat Min Exi Min Matter Collected 1268 | 230 623 15 . 400 Remotely . | . . . . . Salvage Created 822 | . 532 22 . 268 Parts 59 | . 42 2 . 15 Haulers Intercepted . | . . . . . Recyclers Shooed 1 | . 1 . . . Parts Field Recycled . | . . . . . Retrieved Matter . | . . . . . Parts Self-Destructed . | . . . . . Prevented . | . . . . . Kills | -11 -10 -10 -10 -9 ------- Run | Jun Mat Min Exi Min Combat Hostiles Destroyed 22 | . 11 3 . 8 Guns 17 | . 10 3 . 4 Cannons 5 | . 1 . . 4 Classes Destroyed 7 | . 5 . . 2 Worker 3 | . 3 . . . Recycler 1 | . . . . 1 Mechanic 1 | . 1 . . . Watcher 3 | . 3 . . . Swarmer 9 | . 3 3 . 3 Grunt 11 | . 8 . . 3 Demolisher 2 | . . . . 2 Best Kill Streak 4 | . 4 3 . 4 Combat Bots Only 3 | . 3 3 . 3 Max Kills in Single Turn 2 | . 1 1 . 2 Gunslinging . | . . . . . Exploded . | . . . . . Melee . | . . . . . Uniques/NPCs Destroyed . | . . . . . Combat | -11 -10 -10 -10 -9 -------- Run | Jun Mat Min Exi Min Damage Taken 1608 | . 752 154 . 702 Core 264 | . 84 12 . 168 Absorbed by Shields . | . . . . . Regen/Repaired (Parts) 97 | . 97 . . . Core Remaining (%) 100 | 100 . . . . Volleys Fired 132 | . 73 35 . 24 Largest 2 | . 2 2 . 2 Hottest 100 | . 60 55 . 100 Shots Fired 227 | . 132 47 . 48 Gun 156 | . 120 12 . 24 Cannon 71 | . 12 35 . 24 Launcher . | . . . . . Special . | . . . . . Kinetic 197 | . 107 47 . 43 Thermal 30 | . 25 . . 5 Explosive . | . . . . . Electromagnetic . | . . . . . Robot Hit Streak 9 | . 5 7 . 9 Robot Miss Streak 8 | . 8 1 . 2 Penetration Max . | . . . . . Secondary Targets 2 | . 2 . . . Max Gunslinging Chain 1 | . 1 . . . Shots Hit Robots 107 | . 63 11 . 33 Core Hits 46 | . 28 3 . 15 Critical Kills 1 | . 1 . . . Critical Parts Destroyed 1 | . 1 . . . Critical Strikes 5 | . 2 1 . 2 Burn 1 | . . . . 1 Destroy 2 | . 2 . . . Blast 2 | . . 1 . 1 Melee Attacks . | . . . . . Impact . | . . . . . Slashing . | . . . . . Piercing . | . . . . . Sneak Attacks . | . . . . . Combat Hostiles . | . . . . . Follow-up Attacks . | . . . . . Damage Inflicted 1608 | . 882 192 . 534 Guns 1212 | . 865 104 . 243 Cannons 369 | . 17 88 . 264 Explosions . | . . . . . Melee . | . . . . . Ramming 27 | . . . . 27 Kinetic 1400 | . 754 192 . 454 Thermal 181 | . 128 . . 53 Explosive . | . . . . . Electromagnetic . | . . . . . Impact . | . . . . . Slashing . | . . . . . Piercing . | . . . . . Highest Corruption . | . . . . . Average Corruption . | . . . . . Corruption Purged . | . . . . . Corruption Blocked . | . . . . . Overload Shots . | . . . . . Overflow Damage 15 | . . 15 . . Projectiles 15 | . . 15 . . Explosions . | . . . . . Melee . | . . . . . Knockbacks 9 | . . 1 . 8 Impact . | . . . . . Kinetic 7 | . . 1 . 6 Secondary 2 | . . . . 2 Self-Inflicted Damage . | . . . . . Shots . | . . . . . Rammed 3 | . 1 . . 2 Targets Rammed 4 | . 1 . . 3 Kicked 1 | . . . . 1 Crushed . | . . . . . Highest Temperature 157 | . 6 . . 157 Average Temperature 37 | . 2 . . 48 Received Heat Transfer 522 | . 276 . . 246 Siege Activations . | . . . . . Robots Corrupted . | . . . . . Combat Hostiles . | . . . . . Parts Fried 1 | . . . . 1 Impact Corruptions 1 | . . . . 1 Robots Melted . | . . . . . Combat Hostiles . | . . . . . Parts Melted 1 | . . . . 1 Heat Transferred 522 | . 300 . . 222 Parts Sabotaged . | . . . . . Parts Stolen . | . . . . . Parts Stripped . | . . . . . Power Chain Reactions . | . . . . . Missiles Intercepted . | . . . . . Alert | -11 -10 -10 -10 -9 ------- Run | Jun Mat Min Exi Min Peak Influence 241 | . 241 78 . 95 Initial 8 | . . 8 . . Average 48 | . 49 72 . 46 Maximum Alert Level 1 | . 1 . . . Low Security (%) 98 | 100 97 100 . 100 Level 1 1 | . 2 . . . Level 2 . | . . . . . Level 3 . | . . . . . Level 4 . | . . . . . Level 5 . | . . . . . High Security . | . . . . . Max Security . | . . . . . Squads Dispatched 2 | . 2 . . . Investigation 1 | . 1 . . . Extermination . | . . . . . Reinforcement 1 | . 1 . . . Assault . | . . . . . Garrison . | . . . . . Intercept . | . . . . . Searches Triggered . | . . . . . Construction Impeded . | . . . . . Haulers Reinforced . | . . . . . Active Scanning Responses . | . . . . . Cargo Convoy Interrupts . | . . . . . Stealth | -11 -10 -10 -10 -9 --------- Run | Jun Mat Min Exi Min Distress Signals 3 | . 2 . . 1 Communications Jammed . | . . . . . Distress Signals . | . . . . . Times Spotted 37 | . 23 3 . 11 Peak Tracking Total 3 | . 3 3 . 3 Tactical Retreats . | . . . . . Traps | -11 -10 -10 -10 -9 ------- Run | Jun Mat Min Exi Min Traps Triggered 2 | . 2 . . . Indirectly . | . . . . . Trap Hack Attempts . | . . . . . Triggered . | . . . . . Disarmed . | . . . . . Reprogrammed . | . . . . . Reused . | . . . . . Traps Extracted . | . . . . . Installed . | . . . . . Triggered . | . . . . . Machines | -11 -10 -10 -10 -9 ---------- Run | Jun Mat Min Exi Min Machines Disabled 1 | . 1 . . . Max in Single Turn 1 | . 1 . . . Machines Repaired . | . . . . . Machines Sabotaged . | . . . . . Overloaded Fab Kills . | . . . . . Hacking | -11 -10 -10 -10 -9 --------- Run | Jun Mat Min Exi Min Machines Accessed 6 | . 2 . 4 . Terminals 1 | . 1 . . . Fabricators . | . . . . . Repair Stations 1 | . 1 . . . Recycling Units . | . . . . . Scanalyzers . | . . . . . Garrison Access . | . . . . . Total Hacks 58 | . 9 . 49 . Successful 55 | . 6 . 49 . Failed 3 | . 3 . . . Catastrophic . | . . . . . Database Lockouts . | . . . . . Manual 1 | . 1 . . . Terminals 4 | . 4 . . . Fabricators . | . . . . . Repair Stations 5 | . 5 . . . Recycling Units . | . . . . . Scanalyzers . | . . . . . Garrison Access . | . . . . . Terminal Hacks 50 | . 1 . 49 . Record 49 | . . . 49 . Prototype ID Bank 1 | . 1 . . . Fabricator Hacks . | . . . . . Repair Station Hacks 5 | . 5 . . . Scan Component 3 | . 3 . . . Repair 2 | . 2 . . . Recycling Unit Hacks . | . . . . . Scanalyzer . | . . . . . Garrison Access Hacks . | . . . . . Unauthorized Hacks . | . . . . . Terminals . | . . . . . Fabricators . | . . . . . Repair Stations . | . . . . . Recycling Units . | . . . . . Scanalyzers . | . . . . . Garrison Access . | . . . . . Data Cores Recovered . | . . . . . Used . | . . . . . Hacking Detections 2 | . 2 . . . Full Trace Events 2 | . 2 . . . Feedback Events . | . . . . . Feedback Blocked . | . . . . . Robot Schematics Acquired . | . . . . . Robots Built . | . . . . . Authchips . | . . . . . Time . | . . . . . Total Robot Build Rating . | . . . . . Part Schematics Acquired . | . . . . . Parts Built . | . . . . . Authchips . | . . . . . Time . | . . . . . Total Part Build Rating . | . . . . . Parts Repaired 2 | . 2 . . . Time 52 | . 52 . . . Parts Recycled . | . . . . . Recycled Matter . | . . . . . Retrieved Matter . | . . . . . Retrieved Components . | . . . . . Parts Scanalyzed . | . . . . . Part Schematics Acquired . | . . . . . Parts Damaged . | . . . . . Bothacking | -11 -10 -10 -10 -9 ------------ Run | Jun Mat Min Exi Min Used RIF Installer . | . . . . . Robots Hacked . | . . . . . Non-combat . | . . . . . Combat . | . . . . . Robot Hacks Applied . | . . . . . Relay Couplers Released . | . . . . . Fabnet Peak Effective % . | . . . . . Robots Rewired . | . . . . . Allies Hacked . | . . . . . Hacks Repelled . | . . . . . Allies | -11 -10 -10 -10 -9 -------- Run | Jun Mat Min Exi Min Total Allies . | . . . . . Largest Group . | . . . . . Highest-Rated Group . | . . . . . Highest-Rated Ally . | . . . . . Total Orders . | . . . . . Ally Attacks . | . . . . . Total Damage . | . . . . . Kills . | . . . . . Allies Corrupted . | . . . . . Allies Melted . | . . . . . Intel | -11 -10 -10 -10 -9 ------- Run | Jun Mat Min Exi Min Robot Analysis Total . | . . . . . Derelict Logs Recovered 3 | . . 2 . 1 Drone Launches . | . . . . . Drone Recoveries . | . . . . . Exploration | -11 -10 -10 -10 -9 ------------- Run | Jun Mat Min Exi Min Turns Passed 4388 | 93 1798 219 1429 849 Spaces Moved 2001 | 55 934 84 653 275 Core 9 | 7 2 . . . Treads 1981 | 48 932 84 653 264 Legs 11 | . . . . 11 Wheels . | . . . . . Hover . | . . . . . Flight . | . . . . . Fastest Speed 50 | 50 160 160 160 240 Average Speed 193 | 146 160 160 216 274 Slowest Speed 400 | 160 250 160 240 400 Overloaded Moves . | . . . . . Propulsion Burnouts . | . . . . . Robots Hopped . | . . . . . Cave-ins Triggered . | . . . . . Exploration Rate (%) 51 | 4 92 18 93 50 Regions Visited 4 Branch Regions 3 Pre-discovered Areas 2 | . . 1 1 . Known Exits Taken . | . . . . . Unknown Exits Taken 4 | 1 1 1 1 . Scrap Searched 2 | . . 1 . 1 Spaces Dug . | . . . . . Terrain Destroyed . | . . . . . Melee . | . . . . . Projectile . | . . . . . AOE . | . . . . . Terrain Rammed . | . . . . . Walls Destroyed . | . . . . . Machines Disabled . | . . . . . Actions | -11 -10 -10 -10 -9 --------- Run | Jun Mat Min Exi Min Total 2289 | 68 1108 122 673 318 Wait 45 | . 43 . . 2 Move 1997 | 54 933 83 652 275 Hop . | . . . . . Pick Up 44 | 8 25 1 6 4 Fast Attach 6 | . 5 . 1 . Attach 26 | 6 12 1 1 6 Detach 2 | . . . . 2 Swap 3 | . 1 1 1 . Drop 25 | . 15 1 7 2 Fire 132 | . 73 35 . 24 Melee . | . . . . . Ram . | . . . . . Kick 1 | . . . . 1 Crush 3 | . 1 . . 2 Escape Stasis . | . . . . . Rewire 5 | . . . 5 . Trap . | . . . . . Miscellaneous . | . . . . . Route ------- -11/Junkyard -10/Materials (discovered 5 exits: [*Mat x3] / [*Min x2]) -10/Mines -10/Exiles (discovered 2 exits: [*Min x2]) -9/Mines (discovered 2 exits: [*Mat x2]) History --------- Turn | Location | Event 3 | -11/Junkyard | Discovered new exit (range 16) 94 | -11/Junkyard | Entered Materials 307 | -10/Materials | Build established: Mutant 500 | -10/Materials | Discovered new exit (range 16) 557 | -10/Materials | Repaired Lgt. Treads 583 | -10/Materials | Repaired Lgt. Treads 963 | -10/Materials | Discovered new exit (range 8) 1242 | -10/Materials | Discovered new exit (range 6) 1256 | -10/Materials | Discovered new exit (range 15) 1417 | -10/Materials | Discovered new exit (range 16) 1892 | -10/Materials | Entered Mines 1959 | -10/Mines | Learned Materials trap positions 1967 | -10/Mines | Learned location of Storage (-7) 2029 | -10/Mines | Discovered new exit (range 6) 2111 | -10/Mines | Entered Exiles 2172 | -10/Exiles | Met 8R-AWN 2196 | -10/Exiles | Met EX-HEX 2269 | -10/Exiles | Met EX-DEC 2310 | -10/Exiles | Learned location of Zion (-6) 2402 | -10/Exiles | Discovered new exit (range 14) 2658 | -10/Exiles | Visited The Gauntlet 3096 | -10/Exiles | Met EX-BIN 3137 | -10/Exiles | Aligned with FarCom system 3139 | -10/Exiles | Given EX-Vault access code 3514 | -10/Exiles | Discovered new exit (range 14) 3540 | -10/Exiles | Entered Mines 3606 | -9/Mines | Discovered new exit (range 10) 3651 | -9/Mines | Learned Materials security intel 3942 | -9/Mines | Core integrity fell below 50% 4110 | -9/Mines | Discovered new exit (range 7) 4332 | -9/Mines | Assembled infested the area 4353 | -9/Mines | Core integrity fell below 20% 4389 | -9/Mines | Destroyed by G-47 Trooper with Particle Gun Last Messages --------------- 04349_ D-53 Grenadier unfolds itself. 04351_ D-53 Grenadier knocked back. 04354_ D-53 Grenadier destroyed. 04356_ The unstable cave ceiling collapses. 04356_ Lgt. Ion Engine destroyed. 04357_ D-53 Grenadier destroyed. 04360_ The unstable cave ceiling collapses. 04363_ R-06 Scavenger collects Imp. Light Armor Plating. 04364_ The unstable cave ceiling collapses. 04366_ R-06 Scavenger collects Cmb. Airjet. 04370_ R-06 Scavenger collects Shock Absorption System. 04373_ Dropped Hvy. Assault Rifle. 04373_ Acquired Hvy. Assault Rifle. 04376_ R-06 Scavenger collects Lgt. Treads. 04377_ Acquired 37 matter. 04382_ Kicked U-05 Engineer. 04383_ Aluminum Leg destroyed. 04384_ The unstable cave ceiling collapses. 04385_ Acquired 90 matter. 04386_ K-01 Serf collects debris. Map ----- +----------------------------------------------------+ | ???????????????????????????????????????????? | | ???????????????????????????????????????????? | | ???????????????????????????????????????????? | | ???????????????????????????????????????????? | | ?????????????? ##?????????????????????????? | | ??????????????? #????????????????????????? | | ?????????????? ????????????????????????? | | ??????????#???"" ????????????????????????? | | ?????????## """ #???????????????????????? | | ?????????# """ #??????????????????????? | | ???????? ! ##????????????????????? | | ????????? ##???????????????????? | | ??????????? ##??????????????????? | | ??? ????????? #??????????????????? | | ?? ?????????? #??????????????????? | | ??# ???????????# #??????????????????? | | ??# ????????????# ###########????????? | | ??# ?????????????#u ?????? | | ??# ???????????### g ?????? | | ??# ??????????## gg##########?????????? | | ?## #?????????# # r ##????????????????? | | ## #?????????# ##???????????????? | | # ###???????# # %##??????????????? | | # ##??????# # #??????????????? | | ? #??????# # % #??????????????? | | ?? #??????## #@ ##??????????????? | | ???# #???????## ## #???????????????? | | ???# #????????#### k #???????????????? | | ??## #??????###### ### #?#####?????????? | | ### ##??????# #?# ### ##????????? | | ###???????# ######?# ## ##???????? | | ##?????????# #??????# #???????? | | #?????####?# #??????# ### #???????? | | #????## ### ###????# ##?####???????? | | "" #?#### ## %###### ####?????????????? | | "" #?# #????????????????? | | "" ##?# #????????????????? | | #??# #### #### ### #??#####?????????? | | #??# #??# #??# #?# #?## #?????????? | | # ##?# #??# # #??# #?# ### #?????????? | | # ### #??# # #??# #?# ## #??????????? | | ## ## #??# # #### ## ##?????????? | | ### # #??# # ##### ###???????? | | ##?# ###?# < #?## ##??????? | | #? ????# ## #??????? | | ## #? ????# ##?????? | | ?## ### ????# ##????? | | ??########? ????# #????? | | ???????????# #???# ## #????? | | ???????????#####????## ##?## ##????? | +----------------------------------------------------+ Best States ------------- Heat Dissipation 35 Energy Generation 10 Energy Capacity 250 Matter Stores 400 Matter Capacity 400 Sight Range 16 Terrain Scan Density 10 Evasion (%) 40 Targeting Accuracy 5 Recoil Reduction 2 Item Schematics ----------------- None Robot Schematics ------------------ None Fabricated ------------ Nothing Alien Tech Used ----------------- None Achievements -------------- Librarian Challenges ------------ None Game ------ Seed TrackerEnergyClaymores Manual? 0 Play Time 00:42:58 Cumulative 5.2 hours Start 2023.10.30 @ 14:23:16 End 2023.10.30 @ 15:07:43 Sessions 1 Manual Loads 0 Difficulty Rogue Special Mode None Game No. 5 Rogue 5 Adventurer 0 Explorer 0 Win Type - Total 0 Types 0/0/0/0/0/0/0/0/0 Lore% 10 Gallery% 6 Achievement% 7 Wizard Run 0 Options --------- ASCII 0 Keyboard 0 Movement Mouse Keybinds 0 Fullscreen 2 Font 18/SmallcapsGlow Map View 76x50 Tactical HUD 1 Map Filters NONE Filters NONE Steam 1 RUN: 1994bd62-ad65-4fdd-bd16-1c503d2bed94